bitfinex-derivatives/quotes_BTCF0:USTF0_20241122
["timestamp","ask_amount","ask_price","bid_price","bid_amount"]
[1732287115133,0.051278,97443.0,97435.0,0.00961252]
[1732287115331,0.051281,97438.0,97436.0,0.00961252]
[1732287115531,0.051281,97438.0,97434.0,0.39072]
[1732287115532,0.051281,97438.0,97437.0,0.00961252]
[1732287115834,0.3608,97453.0,97434.0,0.39]
[1732287115835,0.051282,97435.0,97434.0,0.39]
[1732287116331,0.051322,97435.0,97434.0,0.39961252]
[1732287116529,4e-05,97435.0,97434.0,0.39961252]
[1732287117031,4e-05,97435.0,97434.0,0.45089552]
[1732287117243,4e-05,97435.0,97434.0,0.441283]
[1732287117530,0.051322,97435.0,97434.0,0.39]
[1732287117926,0.051322,97435.0,97426.0,4e-05]
[1732287117927,0.051283,97434.0,97429.0,0.00961252]
[1732287118127,0.051286,97428.0,97427.0,0.00961252]
[1732287118425,0.051286,97428.0,97426.0,4e-05]
[1732287118426,0.051326,97428.0,97426.0,4e-05]
[1732287118633,0.051326,97428.0,97426.0,0.39004]
[1732287118830,4e-05,97427.0,97426.0,0.39004]
[1732287119035,4e-05,97427.0,97426.0,4e-05]
[1732287119332,4e-05,97427.0,97418.0,0.3608]
[1732287119333,0.0399,97417.0,97402.0,0.0048]
[1732287119537,0.0399,97417.0,97363.0,0.3608]
[1732287119538,0.051308,97387.0,97385.0,0.00961602]
[1732287119727,0.3608,97392.0,97385.0,0.05]
[1732287119931,0.3608,97403.0,97385.0,0.05]
[1732287120133,0.3608,97403.0,97391.0,4e-05]
[1732287120338,0.051303,97396.0,97391.0,4e-05]
[1732287120541,0.051293,97415.0,97391.0,4e-05]
[1732287120735,0.3608,97414.0,97398.0,0.3608]
[1732287120929,0.3608,97404.0,97398.0,0.39]
[1732287121130,0.3608,97402.0,97398.0,0.39]
[1732287121333,0.051303,97397.0,97391.0,4e-05]
[1732287121531,0.3608,97402.0,97391.0,0.08004]
[1732287121835,0.3608,97416.0,97401.0,0.3608]
[1732287122026,9.737e-05,97430.0,97413.0,0.051294]
[1732287122027,0.3608,97426.0,97413.0,0.051294]
[1732287122231,0.3608,97426.0,97413.0,0.39]
[1732287122435,0.3608,97426.0,97425.0,4e-05]
[1732287124329,0.3608,97426.0,97393.0,0.00961602]
[1732287124330,0.66872,97426.0,97393.0,0.00961602]
[1732287124633,0.051299,97404.0,97393.0,0.39]
[1732287124928,0.00056001,97406.0,97393.0,0.39]
[1732287125138,0.0024,97424.0,97393.0,0.39]
[1732287125139,0.4121,97402.0,97393.0,0.39]
[1732287125332,0.3608,97402.0,97393.0,0.39]
[1732287125540,0.36136001,97410.0,97398.0,0.051302]
[1732287125744,0.05107516,97424.0,97403.0,0.3608]
[1732287125945,0.00052001,97425.0,97424.0,0.051288]
[1732287126134,0.0028,97449.0,97424.0,0.051288]
[1732287126135,0.0024,97450.0,97424.0,0.749208]
[1732287126436,0.22252,97465.0,97449.0,4e-05]
[1732287126437,0.051272,97455.0,97449.0,4e-05]
[1732287126643,0.051273,97452.0,97449.0,4e-05]
[1732287126839,0.3608,97457.0,97434.0,0.3608]
[1732287126840,0.66864,97457.0,97434.0,0.3608]
[1732287127143,0.3608,97445.0,97436.0,0.39]
[1732287128039,0.051278,97444.0,97436.0,0.39]
[1732287128235,0.3608,97445.0,97402.0,0.3608]
[1732287128236,0.3608,97437.0,97402.0,0.3608]
[1732287128437,0.3608,97437.0,97424.0,0.39004]
[1732287128438,0.3608,97426.0,97424.0,0.39004]
[1732287128633,4e-05,97425.0,97424.0,0.39004]
[1732287128941,0.051328,97425.0,97424.0,0.39004]
[1732287129643,0.051328,97425.0,97424.0,4e-05]
[1732287130236,4e-05,97425.0,97424.0,4e-05]
[1732287130435,0.3608,97437.0,97424.0,0.69796]
[1732287130637,0.3608,97447.0,97435.0,0.3608]
[1732287130840,0.3608,97447.0,97436.0,4e-05]
[1732287131040,0.3608,97448.0,97436.0,4e-05]
[1732287131339,0.05407136,97467.0,97447.0,4e-05]
[1732287131544,0.3608,97472.0,97447.0,4e-05]
[1732287131545,0.36140001,97472.0,97455.0,0.3608]
[1732287131741,0.0024,97473.0,97461.0,0.051269]
[1732287131943,0.0024,97473.0,97471.0,0.36084]
[1732287132245,0.051254,97490.0,97472.0,0.051303]
[1732287132443,0.00052001,97481.0,97472.0,4e-05]
[1732287132646,0.051256,97486.0,97471.0,0.75172]
[1732287132945,0.3608,97487.0,97471.0,0.7508]
[1732287132946,4e-05,97472.0,97471.0,0.7508]
[1732287133134,4e-05,97472.0,97471.0,1.0586]
[1732287133538,4e-05,97472.0,97471.0,1.109863]
[1732287133740,4e-05,97472.0,97471.0,1.0586]
[1732287133938,4e-05,97472.0,97471.0,1.109863]
[1732287134145,4e-05,97472.0,97471.0,1.0586]
[1732287134348,4e-05,97472.0,97471.0,0.7508]
[1732287134544,4e-05,97472.0,97471.0,1.0586]
[1732287135040,4e-05,97472.0,97471.0,0.7508]
[1732287135239,4e-05,97472.0,97471.0,0.802063]
[1732287135543,4e-05,97472.0,97471.0,1.109863]
[1732287135739,0.00066826,97472.0,97471.0,0.802063]
[1732287135945,0.00066826,97472.0,97471.0,0.7508]
[1732287136643,0.00066826,97472.0,97471.0,0.39]
[1732287137035,0.00066826,97472.0,97471.0,0.6978]
[1732287137433,0.3608,97492.0,97471.0,0.6978]
[1732287137639,0.051259,97480.0,97471.0,0.39]
[1732287137839,0.051259,97480.0,97475.0,0.051261]
[1732287138950,0.05078368,97498.0,97473.0,0.3608]
[1732287138951,0.3608,97491.0,97473.0,0.3608]
[1732287139138,0.051254,97489.0,97480.0,0.051258]
[1732287139339,0.051254,97489.0,97473.0,0.3608]
[1732287139340,0.051254,97489.0,97484.0,0.051257]
[1732287139536,0.4608,97500.0,97484.0,0.39]
[1732287139746,0.1,97500.0,97499.0,0.3608]
[1732287139939,0.0024,97517.0,97499.0,0.3608]
[1732287139940,0.0024,97525.0,97524.0,0.051236]
[1732287140136,0.051224,97546.0,97524.0,0.56184]
[1732287140338,0.051228,97539.0,97530.0,0.051232]
[1732287140547,0.051228,97539.0,97531.0,0.051232]
[1732287140749,0.051231,97532.0,97524.0,0.56184]
[1732287141044,0.3608,97540.0,97524.0,0.56184]
[1732287141247,0.3608,97540.0,97538.0,0.051228]
[1732287141439,0.05122,97555.0,97539.0,0.3608]
[1732287141640,0.0024,97576.0,97558.0,0.051217]
[1732287141947,0.3608,97578.0,97558.0,0.051217]
[1732287141948,0.3608,97570.0,97560.0,0.23352585]
[1732287142146,0.3608,97578.0,97565.0,0.3608]
[1732287142147,0.05097782,97577.0,97565.0,0.3608]
[1732287142351,0.00012617,97577.0,97565.0,0.3608]
[1732287142547,0.051208,97576.0,97565.0,0.3608]
[1732287142754,0.00012617,97577.0,97572.0,0.05121]
[1732287142957,0.05133417,97577.0,97565.0,0.412014]
[1732287143249,0.051202,97588.0,97578.0,0.051207]
[1732287143438,0.051202,97588.0,97578.0,0.441207]
[1732287143638,0.051202,97588.0,97587.0,4.001e-05]
[1732287144041,0.358602,97588.0,97587.0,4.001e-05]
[1732287144244,0.40981735,97588.0,97587.0,1e-08]
[1732287144645,0.77061735,97588.0,97587.0,1e-08]
[1732287144846,1.07061735,97588.0,97587.0,1e-08]
[1732287145047,1.41505735,97588.0,97587.0,1e-08]
[1732287145247,0.051219,97555.0,97521.0,0.3608]
[1732287145544,0.051229,97537.0,97521.0,0.3608]
[1732287145746,0.051234,97528.0,97521.0,0.7508]
[1732287146059,0.051237,97522.0,97521.0,0.39]
[1732287146253,0.3608,97528.0,97514.0,0.051241]
[1732287146445,0.051234,97527.0,97514.0,0.051241]
[1732287146641,0.00052001,97528.0,97523.0,0.3608]
[1732287146842,0.0024,97539.0,97530.0,0.051232]
[1732287147048,0.3608,97544.0,97530.0,0.051232]
[1732287147256,0.051226,97543.0,97530.0,0.051232]
[1732287147750,0.051232,97532.0,97523.0,0.7508]
[1732287147952,0.3608,97528.0,97523.0,0.39]
[1732287148260,0.6608,97544.0,97501.0,0.3608]
[1732287148261,0.36084002,97524.0,97501.0,0.3608]
[1732287148448,0.17176,97523.0,97501.0,0.5108]
[1732287148757,4.002e-05,97502.0,97501.0,0.562048]
[1732287149056,0.0024,97527.0,97521.0,0.051237]
[1732287149253,0.3608,97537.0,97523.0,0.3608]
[1732287149460,0.051234,97528.0,97526.0,4e-05]
[1732287149664,0.3608,97537.0,97526.0,4e-05]
[1732287149949,0.3608,97537.0,97536.0,4e-05]
[1732287150655,0.30756,97537.0,97536.0,4e-05]
[1732287150848,0.3608,97537.0,97536.0,4e-05]
[1732287151253,0.66836,97537.0,97536.0,4e-05]
[1732287151455,0.3608,97537.0,97536.0,4e-05]
[1732287151755,0.051229,97538.0,97536.0,4e-05]
[1732287152061,0.051229,97538.0,97537.0,4e-05]
[1732287152743,0.00056001,97539.0,97537.0,4e-05]
[1732287152948,0.17176,97548.0,97537.0,4e-05]
[1732287153157,0.051223,97548.0,97538.0,4e-05]
[1732287153354,0.051221,97553.0,97547.0,4e-05]
[1732287153557,0.051223,97549.0,97547.0,4e-05]
[1732287153857,0.36132001,97553.0,97530.0,0.3608]
[1732287154054,0.36132001,97553.0,97526.0,4e-05]
[1732287154055,0.051228,97539.0,97538.0,0.11]
[1732287154353,0.3608,97544.0,97526.0,4e-05]
[1732287154354,0.051234,97527.0,97526.0,4e-05]
[1732287154748,0.051234,97527.0,97526.0,0.39004]
[1732287155345,0.3608,97536.0,97526.0,0.39004]
[1732287155551,0.051234,97528.0,97526.0,0.39004]
[1732287155854,0.17176,97539.0,97526.0,0.39004]
[1732287156046,0.3608,97544.0,97526.0,0.39004]
[1732287156249,0.3608,97544.0,97535.0,0.05123]
[1732287156655,0.3608,97544.0,97526.0,0.39004]
[1732287156854,0.412026,97544.0,97532.0,0.051231]
[1732287157058,0.412026,97544.0,97526.0,0.39004]
[1732287157059,0.3608,97544.0,97526.0,0.39004]
[1732287157252,0.3608,97544.0,97536.0,0.051229]
[1732287157450,0.3608,97544.0,97536.0,0.39]
[1732287157755,0.3608,97544.0,97537.0,0.051229]
[1732287158154,0.3608,97544.0,97536.0,0.39]
[1732287158458,4e-05,97537.0,97526.0,4e-05]
[1732287158760,4e-05,97527.0,97526.0,0.39004]
[1732287159153,0.36084,97527.0,97526.0,0.39004]
[1732287160650,0.412074,97527.0,97526.0,0.39004]
[1732287160852,0.412074,97527.0,97526.0,4e-05]
[1732287161055,0.051243,97510.0,97501.0,0.3608]
[1732287161256,0.051235,97526.0,97501.0,0.7508]
[1732287161257,0.3608,97519.0,97501.0,0.7508]
[1732287161449,4e-05,97502.0,97501.0,0.7508]
[1732287162058,0.051287,97502.0,97501.0,0.39]
[1732287162861,4e-05,97502.0,97501.0,0.39]
[1732287163059,4e-05,97502.0,97501.0,0.7508]
[1732287163250,4e-05,97502.0,97501.0,1.05848]
[1732287163757,4e-05,97502.0,97501.0,0.7508]
[1732287164155,4e-05,97502.0,97501.0,0.39]
[1732287164653,0.30772,97502.0,97473.0,0.3608]
[1732287164856,0.051256,97486.0,97485.0,0.33]
[1732287165058,4e-05,97478.0,97473.0,0.3608]
[1732287165369,0.3608,97492.0,97475.0,0.051261]
[1732287165660,0.3608,97493.0,97473.0,0.75168]
[1732287165860,0.00104002,97503.0,97490.0,0.3608]
[1732287166055,0.00104002,97503.0,97497.0,0.05125]
[1732287166254,0.00104002,97503.0,97492.0,4e-05]
[1732287166255,0.3608,97499.0,97492.0,4e-05]
[1732287166454,0.3608,97499.0,97497.0,0.051249]
[1732287166654,0.3608,97499.0,97492.0,4e-05]
[1732287166655,4e-05,97493.0,97492.0,0.051292]
[1732287166865,0.3608,97530.0,97492.0,0.66856]
[1732287166866,0.0024,97518.0,97492.0,0.66856]
[1732287167055,0.3632,97530.0,97505.0,0.3608]
[1732287167253,0.3632,97530.0,97517.0,4e-05]
[1732287167463,0.414433,97530.0,97529.0,4e-05]
[1732287167861,0.722033,97530.0,97529.0,4e-05]
[1732287168255,1.082833,97530.0,97529.0,4e-05]
[1732287168459,1.254593,97530.0,97529.0,4e-05]
[1732287168763,1.254873,97530.0,97529.0,4e-05]
[1732287169164,0.3632,97530.0,97529.0,4e-05]
[1732287169368,0.3632,97530.0,97529.0,0.22004]
[1732287171463,0.0024,97530.0,97529.0,0.22004]
[1732287171661,0.0048,97533.0,97532.0,0.051231]
[1732287172163,0.0048,97533.0,97532.0,4e-05]
[1732287172564,0.0048,97533.0,97532.0,0.06004]
[1732287173765,0.051232,97530.0,97529.0,4e-05]
[1732287173964,0.05124,97516.0,97499.0,0.051249]
[1732287174161,0.05124,97516.0,97494.0,0.3608]
[1732287174162,0.412041,97514.0,97500.0,0.051248]
[1732287174367,0.3608,97505.0,97498.0,0.429]
[1732287174771,7.999e-05,97499.0,97498.0,0.480249]
[1732287174968,7.999e-05,97499.0,97498.0,0.429]
[1732287175173,7.999e-05,97499.0,97498.0,0.39]
[1732287176573,7.999e-05,97499.0,97498.0,0.441249]
[1732287178068,7.999e-05,97499.0,97498.0,0.39]
[1732287178486,7.999e-05,97499.0,97498.0,0.441249]
[1732287178681,7.999e-05,97499.0,97498.0,0.39]
[1732287180590,0.30775999,97499.0,97498.0,0.39]
[1732287180770,0.05126,97478.0,97464.0,0.36168]
[1732287180978,0.3608,97490.0,97481.0,0.39]
[1732287181280,0.051257,97483.0,97481.0,0.39]
[1732287181481,0.05163753,97499.0,97489.0,4e-05]
[1732287181676,7.999e-05,97499.0,97493.0,0.3608]
[1732287181878,7.999e-05,97499.0,97498.0,4e-05]
[1732287182075,0.30775999,97499.0,97498.0,4e-05]
[1732287182272,0.30775999,97499.0,97474.0,0.3608]
[1732287182475,0.3608,97488.0,97474.0,0.39]
[1732287182691,0.051261,97476.0,97474.0,0.39]
[1732287183384,0.051273,97452.0,97450.0,0.3608]
[1732287183583,0.051273,97452.0,97450.0,0.03]
[1732287183785,0.00012,97451.0,97450.0,0.03]
[1732287184175,0.3608,97475.0,97450.0,0.33784]
[1732287184477,0.3608,97475.0,97460.0,0.3608]
[1732287184682,0.3608,97464.0,97460.0,0.39]
[1732287184882,0.3608,97467.0,97460.0,0.39]
[1732287185071,0.05167497,97482.0,97460.0,0.39]
[1732287185276,0.0096,97497.0,97474.0,0.3608]
[1732287185474,0.3608,97507.0,97491.0,0.3608]
[1732287185678,0.3608,97517.0,97497.0,0.051249]
[1732287185991,0.0111399,97524.0,97498.0,0.30772]
[1732287186188,0.0015399,97524.0,97510.0,0.3608]
[1732287186487,0.0015399,97524.0,97523.0,8e-05]
[1732287186679,0.34448,97549.0,97523.0,8e-05]
[1732287186680,0.0508244,97550.0,97539.0,0.051228]
[1732287186993,0.3608,97557.0,97536.0,0.051229]
[1732287187282,0.3608,97557.0,97536.0,0.39]
[1732287187283,0.051223,97548.0,97536.0,0.39]
[1732287187483,0.08933927,97567.0,97539.0,0.3608]
[1732287187688,0.3608,97556.0,97539.0,0.412028]
[1732287187876,0.3608,97556.0,97539.0,0.3608]
[1732287188284,0.3608,97556.0,97524.0,0.0024]
[1732287188285,0.3608,97548.0,97524.0,0.0024]
[1732287188488,0.3608,97540.0,97524.0,0.22]
[1732287188678,0.36132001,97548.0,97524.0,0.22]
[1732287188876,0.051227,97540.0,97524.0,0.22]
[1732287189081,0.3608,97548.0,97524.0,0.22]
[1732287189282,0.3608,97538.0,97527.0,0.051234]
[1732287189588,0.3608,97548.0,97524.0,0.22]
[1732287189780,0.051228,97540.0,97530.0,0.051232]
[1732287189984,0.051224,97546.0,97526.0,0.051234]
[1732287190182,0.17208,97552.0,97524.0,0.22]
[1732287190183,0.051232,97531.0,97524.0,0.22]
[1732287190378,0.051232,97531.0,97508.0,0.0024]
[1732287190379,0.3608,97527.0,97503.0,0.3608]
[1732287190583,0.3608,97515.0,97503.0,0.3608]
[1732287190784,4e-05,97504.0,97503.0,0.3608]
[1732287190981,4e-05,97504.0,97492.0,0.3608]
[1732287190982,0.051249,97498.0,97492.0,0.3608]
[1732287191181,0.3608,97497.0,97481.0,0.0024]
[1732287191387,0.36084,97497.0,97481.0,0.0024]
[1732287191785,4e-05,97504.0,97496.0,0.96289]
[1732287192088,0.0048,97533.0,97496.0,0.91164]
[1732287192089,0.3608,97531.0,97496.0,0.91164]
[1732287192281,0.3608,97531.0,97504.0,0.3608]
[1732287192482,0.3608,97531.0,97530.0,0.00016]
[1732287192483,0.412032,97531.0,97530.0,0.00016]
[1732287192686,0.05094044,97539.0,97530.0,0.00016]
[1732287192884,0.051232,97532.0,97530.0,0.00016]
[1732287193084,0.3608,97542.0,97520.0,0.3608]
[1732287193503,4e-05,97521.0,97520.0,0.3608]
[1732287194085,4e-05,97521.0,97520.0,0.6108]
[1732287194291,0.3608,97552.0,97520.0,0.6108]
[1732287194589,0.05174101,97552.0,97546.0,0.00019999]
[1732287194791,0.01113904,97560.0,97546.0,0.39019999]
[1732287194792,0.05275604,97560.0,97546.0,0.39019999]
[1732287195000,0.05122,97555.0,97546.0,0.00019999]
[1732287195190,0.05122,97555.0,97545.0,0.3608]
[1732287195391,0.05122,97555.0,97546.0,0.39]
[1732287195583,0.00153904,97560.0,97546.0,0.39]
[1732287195893,0.00153904,97560.0,97535.0,0.3608]
[1732287195894,0.3608,97553.0,97535.0,0.3608]
[1732287196091,0.051239,97519.0,97516.0,0.0024]
[1732287196282,0.3608,97536.0,97516.0,0.0024]
[1732287196283,0.3608,97528.0,97516.0,0.04]
[1732287196487,0.051234,97527.0,97516.0,0.04]
[1732287196791,0.3608,97528.0,97527.0,0.00019999]
[1732287197291,0.6684,97528.0,97527.0,0.00019999]
[1732287197794,0.6684,97528.0,97498.0,0.0024]
[1732287197795,0.9684,97528.0,97498.0,0.0024]
[1732287198093,0.9684,97528.0,97494.0,0.3608]
[1732287198094,4e-05,97502.0,97501.0,0.4108]
[1732287198394,4e-05,97502.0,97501.0,0.3608]
[1732287199189,4e-05,97502.0,97478.0,0.00153839]
[1732287199190,0.05125,97497.0,97481.0,0.3608]
[1732287199485,0.05125,97497.0,97478.0,0.00153839]
[1732287199486,0.05129,97497.0,97478.0,0.00153839]
[1732287200001,4e-05,97497.0,97486.0,0.051255]
[1732287200184,4e-05,97497.0,97490.0,0.051253]
[1732287200384,4e-05,97497.0,97482.0,0.3608]
[1732287200590,0.35901,97497.0,97482.0,0.3608]
[1732287200791,0.71981,97497.0,97482.0,0.3608]
[1732287201089,0.36084,97497.0,97482.0,0.3608]
[1732287201293,0.36084,97497.0,97488.0,0.051254]
[1732287201492,0.36084,97497.0,97489.0,0.051254]
[1732287201793,4e-05,97497.0,97496.0,0.39004]
[1732287202391,4e-05,97497.0,97496.0,4e-05]
[1732287202890,0.30776,97497.0,97496.0,4e-05]
[1732287203690,0.30776,97497.0,97476.0,0.3608]
[1732287203891,0.3608,97491.0,97478.0,0.37]
[1732287204303,0.412053,97491.0,97478.0,0.421259]
[1732287204490,0.051254,97490.0,97480.0,0.051259]
[1732287204687,0.00052001,97491.0,97484.0,0.3608]
[1732287204994,0.051253,97491.0,97490.0,4e-05]
[1732287205899,0.719773,97491.0,97490.0,4e-05]
[1732287206199,0.719773,97491.0,97460.0,0.0024]
[1732287206200,0.051266,97466.0,97460.0,0.0024]
[1732287206499,0.3608,97470.0,97460.0,0.39]
[1732287206799,0.3608,97470.0,97443.0,0.3608]
[1732287206800,0.3608,97470.0,97455.0,0.3608]
[1732287207100,0.3608,97470.0,97445.0,0.00088]
[1732287207101,0.051264,97470.0,97469.0,4e-05]
[1732287208292,0.16868,97472.0,97469.0,4e-05]
[1732287208501,0.219943,97472.0,97469.0,4e-05]
[1732287208691,0.16868,97472.0,97471.0,4e-05]
[1732287208898,0.05145065,97482.0,97471.0,4e-05]
[1732287209104,0.05145065,97482.0,97477.0,0.3608]
[1732287209304,0.051254,97490.0,97481.0,4e-05]
[1732287209504,0.16868,97491.0,97481.0,0.39004]
[1732287209700,0.051258,97483.0,97481.0,0.39]
[1732287210200,0.3608,97490.0,97468.0,0.3608]
[1732287210402,0.16868,97489.0,97468.0,0.7508]
[1732287210606,0.3608,97490.0,97489.0,4e-05]
[1732287210901,0.051222,97550.0,97489.0,0.39004]
[1732287210902,0.3608,97502.0,97489.0,0.39004]
[1732287211098,0.051248,97501.0,97489.0,0.39004]
[1732287211300,0.051248,97501.0,97499.0,4e-05]
[1732287211690,0.051248,97501.0,97500.0,4e-05]
[1732287213798,0.358928,97501.0,97500.0,4e-05]
[1732287214199,0.051248,97501.0,97500.0,4e-05]
[1732287215402,0.00052001,97502.0,97500.0,4e-05]
[1732287215604,0.051248,97501.0,97500.0,0.39004]
[1732287215803,0.051246,97506.0,97500.0,0.39]
[1732287216207,0.3608,97510.0,97500.0,0.39]
[1732287216508,0.3608,97510.0,97509.0,4e-05]
[1732287216709,0.412043,97510.0,97509.0,4e-05]
[1732287217002,0.051243,97510.0,97509.0,4e-05]
[1732287218195,0.412043,97510.0,97509.0,4e-05]
[1732287218394,0.051243,97510.0,97509.0,4e-05]
[1732287218599,0.00052001,97518.0,97509.0,0.39004]
[1732287218901,0.051236,97523.0,97517.0,4e-05]
[1732287219109,0.051234,97528.0,97519.0,0.051238]
[1732287219295,0.16868,97531.0,97519.0,0.051238]
[1732287219296,0.16868,97531.0,97522.0,4e-05]
[1732287219498,0.051229,97538.0,97530.0,0.3608]
[1732287219807,0.051229,97536.0,97530.0,0.3608]
[1732287220310,0.3608,97544.0,97530.0,0.3608]
[1732287220603,0.051232,97531.0,97530.0,0.3608]
[1732287220803,0.051232,97531.0,97506.0,0.16868]
[1732287220804,0.3608,97535.0,97514.0,0.3608]
[1732287220997,0.051227,97541.0,97514.0,0.3608]
[1732287220998,0.051231,97534.0,97519.0,0.051238]
[1732287221197,8e-05,97515.0,97514.0,0.802921]
[1732287221607,0.051227,97540.0,97532.0,0.051231]
[1732287221797,0.3608,97544.0,97534.0,4e-05]
[1732287222203,0.412025,97544.0,97543.0,4e-05]
[1732287222397,0.051225,97544.0,97543.0,4e-05]
[1732287222600,0.16868,97548.0,97543.0,4e-05]
[1732287223001,0.00056001,97549.0,97547.0,4e-05]
[1732287223205,0.0024,97572.0,97547.0,4e-05]
[1732287223206,0.05112398,97555.0,97547.0,4e-05]
[1732287223410,0.051225,97544.0,97543.0,4e-05]
[1732287223600,0.412025,97544.0,97543.0,4e-05]
[1732287223801,0.051237,97522.0,97521.0,0.3608]
[1732287224198,0.051277,97522.0,97521.0,0.3608]
[1732287225897,4e-05,97522.0,97521.0,0.3608]
[1732287227614,4e-05,97522.0,97521.0,1.41924]
[1732287227907,0.0024,97548.0,97521.0,1.41924]
[1732287228118,0.051225,97545.0,97535.0,0.3608]
[1732287228303,0.051225,97545.0,97535.0,0.7508]
[1732287229304,0.41254075,97549.0,97537.0,0.051229]
[1732287229506,0.41202074,97549.0,97535.0,0.39088]
[1732287229714,0.051225,97545.0,97535.0,0.39]
[1732287229914,4e-05,97536.0,97535.0,0.39]
[1732287231817,4e-05,97536.0,97521.0,0.3608]
[1732287232006,0.051237,97522.0,97521.0,0.7508]
[1732287232204,0.051277,97522.0,97521.0,0.7508]
[1732287232613,0.051277,97522.0,97521.0,0.39]
[1732287232817,0.10127973,97522.0,97521.0,0.39]
[1732287233208,4e-05,97522.0,97521.0,0.39]
[1732287234703,4e-05,97522.0,97517.0,0.3608]
[1732287234704,0.051239,97518.0,97517.0,0.3608]
[1732287234909,0.051239,97518.0,97517.0,0.3908]
[1732287235116,0.051279,97518.0,97517.0,0.3908]
[1732287236008,0.051279,97518.0,97498.0,0.36172]
[1732287236009,0.051248,97500.0,97498.0,0.3608]
[1732287236208,0.051248,97500.0,97498.0,0.18]
[1732287236406,4e-05,97499.0,97498.0,0.18]
[1732287237113,4e-05,97499.0,97491.0,0.3608]
[1732287237314,0.051252,97493.0,97491.0,0.3808]
[1732287237517,4e-05,97499.0,97491.0,0.3808]
[1732287237518,4e-05,97492.0,97491.0,0.3808]
[1732287240020,4e-05,97492.0,97475.0,0.051261]
[1732287240319,4e-05,97484.0,97483.0,0.22]
[1732287241115,0.0024,97510.0,97483.0,0.52776]
[1732287241319,0.0024,97519.0,97505.0,0.051245]
[1732287241515,0.05107948,97520.0,97516.0,0.05124]
[1732287241719,0.3608,97530.0,97515.0,0.3608]
[1732287241720,0.05124,97517.0,97515.0,0.3608]
[1732287241916,0.05125,97497.0,97495.0,0.00328]
[1732287242218,0.051259,97480.0,97479.0,0.3608]
[1732287242611,0.051259,97480.0,97463.0,0.3608]
[1732287242612,4e-05,97480.0,97463.0,0.3608]
[1732287242812,4e-05,97480.0,97479.0,0.3608]
[1732287243017,0.0096,97512.0,97479.0,0.7508]
[1732287243222,0.36136001,97516.0,97498.0,0.3608]
[1732287243420,0.41134654,97516.0,97504.0,0.051246]
[1732287243720,0.3608,97523.0,97508.0,0.3608]
[1732287243923,0.00153931,97526.0,97516.0,0.3608]
[1732287244119,0.00153931,97526.0,97524.0,0.3608]
[1732287244320,0.05277431,97526.0,97524.0,0.3708]
[1732287244622,0.051236,97524.0,97522.0,8.001e-05]
[1732287244812,0.00153931,97526.0,97522.0,8.001e-05]
[1732287245013,4e-05,97523.0,97522.0,8.001e-05]
[1732287246430,4e-05,97523.0,97522.0,0.44131701]
[1732287246738,0.3608,97546.0,97522.0,0.69772001]
[1732287246739,0.051224,97546.0,97522.0,0.69772001]
[1732287246931,0.05225958,97556.0,97522.0,0.69772001]
[1732287246932,0.051226,97542.0,97535.0,0.05123]
[1732287247133,0.3608,97553.0,97534.0,0.3608]
[1732287247331,0.051222,97550.0,97534.0,0.7508]
[1732287247537,0.00052001,97548.0,97546.0,0.3608]
[1732287247835,0.00052001,97548.0,97546.0,0.412024]
[1732287248029,0.051218,97558.0,97546.0,0.3608]
[1732287248234,0.051218,97558.0,97555.0,0.3608]
[1732287248428,0.05150657,97570.0,97555.0,0.3608]
[1732287248637,0.16224,97572.0,97568.0,0.051212]
[1732287248936,0.16224,97572.0,97564.0,0.3608]
[1732287248937,0.051214,97566.0,97564.0,0.3608]
[1732287249136,0.21298332,97572.0,97565.0,0.051214]
[1732287249341,0.051212,97570.0,97565.0,0.051214]
[1732287249531,0.051214,97566.0,97564.0,0.3608]
[1732287249838,4e-05,97565.0,97564.0,0.3608]
[1732287250637,0.3704,97597.0,97579.0,0.051207]
[1732287250841,0.051202,97588.0,97579.0,0.412007]
[1732287251028,0.051202,97588.0,97587.0,0.3608]
[1732287251336,0.051202,97588.0,97555.0,0.23352585]
[1732287251337,0.051202,97588.0,97568.0,0.3608]
[1732287251536,0.051212,97570.0,97568.0,0.3608]
[1732287251838,4e-05,97569.0,97568.0,0.3608]
[1732287252034,0.051214,97565.0,97564.0,0.3608]
[1732287252439,0.051254,97565.0,97564.0,0.3608]
[1732287252937,4e-05,97565.0,97564.0,0.3608]
[1732287253235,4e-05,97565.0,97564.0,0.66828]
[1732287253442,0.051211,97571.0,97564.0,0.3708]
[1732287253737,0.3608,97580.0,97570.0,0.00020001]
[1732287253929,0.051203,97587.0,97572.0,0.3608]
[1732287254135,0.051204,97585.0,97583.0,0.3608]
[1732287254527,0.051206,97580.0,97579.0,0.00020001]
[1732287255041,0.051207,97578.0,97572.0,0.3608]
[1732287255333,4e-05,97573.0,97572.0,0.3608]
[1732287255536,4e-05,97573.0,97564.0,0.3608]
[1732287255731,0.051214,97565.0,97564.0,0.3608]
[1732287255931,0.051254,97565.0,97564.0,0.3608]
[1732287256733,4e-05,97565.0,97564.0,0.7508]
[1732287256938,4e-05,97565.0,97564.0,1.05828]
[1732287257137,0.051201,97590.0,97577.0,0.051207]
[1732287257345,0.051201,97590.0,97589.0,0.3608]
[1732287258039,0.19356,97599.0,97589.0,0.7508]
[1732287258040,0.051199,97594.0,97589.0,0.7508]
[1732287258241,0.088997,97599.0,97589.0,0.7508]
[1732287258437,0.051199,97594.0,97593.0,0.00024001]
[1732287259739,0.051199,97595.0,97593.0,0.00024001]
[1732287260044,0.0378,97599.0,97593.0,0.00024001]